fUSD/lending_fUSD_20260601
["ID","MTS","AMOUNT","RATE_DAILY","PERIOD"]
[423694803,1780314656000,-156.87,0.00032735,13]
[423694805,1780314656000,-156.87,0.00032735,13]
[423694809,1780314656000,-1828.0,0.00032762,30]
[423694806,1780314656000,-156.87,0.00032735,13]
[423694808,1780314656000,-893.0,0.00032762,30]
[423694801,1780314656000,-1197.0,0.00032707,30]
[423694841,1780314656000,-500.0,0.00032877,10]
[423694795,1780314656000,-726.94,0.000327,7]
[423694840,1780314656000,-500.0,0.00032877,2]
[423694872,1780314656000,-156.87,0.00033283,13]
[423694870,1780314656000,-156.87,0.00033283,13]
[423694881,1780314656000,-253.86,0.00033501,7]
[423694875,1780314656000,-1000.0,0.000334,120]
[423694877,1780314656000,-1400.0,0.00033418,60]
[423694873,1780314656000,-156.87,0.00033283,13]
[423694876,1780314656000,-726.94,0.000334,30]
[423694878,1780314656000,-507.50100678,0.00033418,60]
[423694880,1780314656000,-1234.46284332,0.000335,2]
[423694882,1780314656000,-1001.05083706,0.00033534,2]
[423694894,1780314656000,-736.0,0.00033762,30]
[423694885,1780314656000,-192.064,0.000337,10]
[423694879,1780314656000,-500.0,0.00033418,60]
[423694893,1780314656000,-3282.82,0.00033758,2]
[423694891,1780314656000,-1197.0,0.00033707,30]
[423694887,1780314656000,-533.0,0.00033707,30]
[423694890,1780314656000,-656.0,0.00033707,30]
[423694889,1780314656000,-1681.0,0.00033707,30]
[423694886,1780314656000,-2972.0,0.00033707,30]
[423694884,1780314656000,-867.64,0.00033619,30]
[423694888,1780314656000,-371.0,0.00033707,30]
[423694892,1780314656000,-706.0,0.00033707,30]
[423694896,1780314656000,-1828.0,0.00033762,30]
[423694895,1780314656000,-893.0,0.00033762,30]
[423694897,1780314656000,-1755.0,0.00033762,30]
[423694838,1780314656000,-423.5684792,0.00032877,2]
[423694883,1780314656000,-677.11,0.00033562,30]
[423694874,1780314656000,-1000.0,0.000334,120]
[423694812,1780314656000,-1033.91097773,0.00032768,2]
[423694866,1780314656000,-1357.0,0.0003328,2]
[423694842,1780314656000,-500.0,0.00032877,10]
[423694871,1780314656000,-156.87,0.00033283,13]
[423694843,1780314656000,-300.96172174,0.00032877,10]
[423694851,1780314656000,-400.0,0.00032955,2]
[423694854,1780314656000,-500.0,0.00032955,2]
[423694852,1780314656000,-404.45563422,0.00032955,2]
[423694855,1780314656000,-500.0,0.00032955,2]
[423694853,1780314656000,-500.0,0.00032955,2]
[423694844,1780314656000,-187.09,0.000329,120]
[423694845,1780314656000,-261.93,0.000329,120]
[423694846,1780314656000,-246.1,0.000329,120]
[423694847,1780314656000,-230.07,0.000329,120]
[423694850,1780314656000,-400.0,0.00032955,2]
[423694856,1780314656000,-500.8,0.00032955,2]
[423694848,1780314656000,-800.31,0.000329,30]
[423694865,1780314656000,-3551.0,0.0003328,2]
[423694849,1780314656000,-400.0,0.00032955,2]
[423694868,1780314656000,-1273.0,0.0003328,2]
[423694864,1780314656000,-150.0,0.0003318,120]
[423694860,1780314656000,-1095.94246903,0.00033,30]
[423694858,1780314656000,-975.70908472,0.00033,7]
[423694862,1780314656000,-350.0,0.00033014,5]
[423694861,1780314656000,-573.522074,0.00033,14]
[423694863,1780314656000,-541.347739,0.00033164,120]
[423694867,1780314656000,-525.0,0.0003328,2]
[423694859,1780314656000,-1782.10610271,0.00033,3]
[423694857,1780314656000,-222.71,0.00033,14]
[423694869,1780314656000,-932.0,0.0003328,2]
[423694932,1780314657000,-240.08,0.000342,11]
[423694926,1780314657000,-1088.64549462,0.00034103,2]
[423694933,1780314657000,-240.08,0.000342,11]
[423694921,1780314657000,-1945.01704463,0.00034103,2]
[423694923,1780314657000,-1145.3304978,0.00034103,2]
[423694925,1780314657000,-1060.24887979,0.00034103,2]
[423694924,1780314657000,-1164.61289549,0.00034103,2]
[423694927,1780314657000,-5377.2,0.00034129,30]
[423694934,1780314657000,-240.08,0.000342,11]
[423694930,1780314657000,-189.13920441,0.00034186,2]
[423694931,1780314657000,-150.0,0.0003419,2]
[423694929,1780314657000,-1346.3,0.00034182,7]
[423694936,1780314657000,-224.662525,0.000342,11]
[423694935,1780314657000,-240.08,0.000342,11]
[423694938,1780314657000,-1000.0,0.00034247,120]
[423694941,1780314657000,-107033.0,0.00034438,30]
[423694937,1780314657000,-165.78,0.00034212,120]
[423694922,1780314657000,-1860.9496747,0.00034103,2]
[423694928,1780314657000,-7186.60514781,0.00034137,40]
[423694913,1780314657000,-1689.87239629,0.00034101,2]
[423694905,1780314657000,-246.1,0.000339,120]
[423694916,1780314657000,-1140.69048918,0.00034101,2]
[423694906,1780314657000,-350.0,0.00033973,5]
[423694907,1780314657000,-297.82,0.00033974,30]
[423694904,1780314657000,-242.36,0.00033836,7]
[423694901,1780314657000,-156.87,0.00033831,13]
[423694898,1780314657000,-421.0,0.00033762,30]
[423694900,1780314657000,-156.87,0.00033831,13]
[423694902,1780314657000,-156.87,0.00033831,13]
[423694899,1780314657000,-1970.277,0.00033825,37]
[423694903,1780314657000,-156.87,0.00033831,13]
[423694918,1780314657000,-1086.15776977,0.00034101,2]
[423694945,1780314657000,-400.0,0.00034453,2]
[423694910,1780314657000,-1206.22947401,0.00034101,2]
[423694908,1780314657000,-726.94,0.00034,30]
[423694919,1780314657000,-1096.40839126,0.00034101,2]
[423694911,1780314657000,-1128.55166934,0.00034101,2]
[423694915,1780314657000,-1183.04355292,0.00034101,2]
[423694917,1780314657000,-1097.08438858,0.00034101,2]
[423694914,1780314657000,-1168.20772868,0.00034101,2]
[423694912,1780314657000,-1276.76071918,0.00034101,2]
[423694920,1780314657000,-1980.52280503,0.00034103,2]
[423694909,1780314657000,-5134.04,0.00034,14]
[423694940,1780314657000,-240.08,0.000344,12]
[423694944,1780314657000,-400.0,0.00034453,2]
[423694946,1780314657000,-500.0,0.00034453,2]
[423694965,1780314657000,-706.0,0.00034707,30]
[423694971,1780314657000,-1755.0,0.00034762,30]
[423694969,1780314657000,-893.0,0.00034762,30]
[423694973,1780314657000,-170.707664,0.00034762,7]
[423694972,1780314657000,-421.0,0.00034762,30]
[423694975,1780314657000,-170.707664,0.00034762,7]
[423694986,1780314657000,-76467.17597675,0.000349,3]
[423694977,1780314657000,-1500.0,0.00034795,2]
[423694967,1780314657000,-239.43875735,0.00034745,120]
[423694985,1780314657000,-151.0,0.00034897,14]
[423694976,1780314657000,-170.707664,0.00034762,7]
[423694978,1780314657000,-12222.7125616,0.00034797,2]
[423694983,1780314657000,-107033.0,0.00034875,30]
[423694981,1780314657000,-1001.0,0.00034849,120]
[423694984,1780314657000,-151.0,0.00034897,14]
[423694980,1780314657000,-261.53346126,0.00034809,2]
[423694982,1780314657000,-151.0,0.00034866,7]
[423694979,1780314657000,-255.46502907,0.00034797,2]
[423694939,1780314657000,-203664.2510642,0.00034353,2]
[423694961,1780314657000,-371.0,0.00034707,30]
[423694974,1780314657000,-170.707664,0.00034762,7]
[423694970,1780314657000,-1828.0,0.00034762,30]
[423694968,1780314657000,-736.0,0.00034762,30]
[423694943,1780314657000,-400.0,0.00034453,2]
[423694942,1780314657000,-3282.82,0.00034443,2]
[423694948,1780314657000,-500.0,0.00034453,2]
[423694956,1780314657000,-667.76760443,0.00034589,30]
[423694947,1780314657000,-500.0,0.00034453,2]
[423694957,1780314657000,-201.73,0.0003459,30]
[423694958,1780314657000,-726.94,0.000346,30]
[423694959,1780314657000,-2972.0,0.00034707,30]
[423694949,1780314657000,-5000.0,0.000345,14]
[423694953,1780314657000,-1230.64,0.00034544,60]
[423694955,1780314657000,-741.83,0.00034544,60]
[423694954,1780314657000,-16865.34,0.00034544,60]
[423694951,1780314657000,-173.39,0.00034521,120]
[423694952,1780314657000,-1638.73,0.00034544,60]
[423694960,1780314657000,-533.0,0.00034707,30]
[423694964,1780314657000,-1197.0,0.00034707,30]
[423694963,1780314657000,-656.0,0.00034707,30]
[423694962,1780314657000,-1681.0,0.00034707,30]
[423694950,1780314657000,-3618.79431791,0.000345,120]
[423694966,1780314657000,-239.43875735,0.00034745,120]
[423694991,1780314658000,-10763.24776396,0.00013396,2]
[423694992,1780314658000,-4299.20821915,0.00026233,2]
[423694993,1780314658000,-199.448385,0.00027397,2]
[423694987,1780314658000,-727.42,0.000349,3]
[423694988,1780314658000,-168.70822505,0.00027397,30]
[423694995,1780314658000,-24977.71213754,0.000349,3]
[423694989,1780314658000,-2831.20431718,0.000349,3]
[423694990,1780314658000,-415.08064283,0.000349,3]
[423694996,1780314658000,-4805.15866995,0.000349,3]
[423694999,1780314658000,-526.49342479,0.0001,2]
[423694997,1780314658000,-524.27769317,0.000349,3]
[423694998,1780314658000,-266.14312138,0.0001,2]
[423695002,1780314658000,-5495.28604042,0.00014007,2]
[423695000,1780314658000,-8618.50640152,0.000105,2]
[423695001,1780314658000,-4424.28894014,0.00014007,2]
[423695003,1780314658000,-843.6727834,0.00014007,2]
[423695004,1780314658000,-3639.0,0.0001528,2]
[423695005,1780314658000,-514.51159411,0.0001828,2]
[423694994,1780314658000,-199.448385,0.00032446,7]
[423695006,1780314658000,-1418.53338379,0.0001828,2]
[423695008,1780314671000,271.33,0.00030137,120]
[423695007,1780314671000,271.34,0.00030137,120]
[423695015,1780314805000,813.258357,0.00026849,120]
[423695016,1780314972000,-150.0,8.151e-05,2]
[423695017,1780314988000,-500.0,8.277e-05,2]
[423695018,1780315026000,-154.0,8.359e-05,2]
[423695019,1780315040000,-500.0,8.403e-05,2]
[423695020,1780315062000,302.543212,0.00026378,120]
[423695021,1780315080000,-250.0,8.381e-05,2]
[423695022,1780315094000,-154.0,8.441e-05,2]
[423695024,1780315133000,433.737183,0.00022518,120]
[423695023,1780315133000,-250.0,8.467e-05,2]
[423695027,1780315284000,2405.0,0.00030137,120]
[423695034,1780315291000,-150.0,9.009e-05,2]
[423695033,1780315291000,-150.0,8.924e-05,2]
[423695031,1780315291000,-150.0,8.839e-05,2]
[423695032,1780315291000,-200.0,8.892e-05,2]
[423695030,1780315291000,-150.0,8.754e-05,2]
[423695028,1780315291000,-150.0,8.584e-05,2]
[423695029,1780315291000,-150.0,8.669e-05,2]
[423695035,1780315318000,-300.0,9.081e-05,2]
[423695040,1780315534000,9999.54531084,0.00030137,120]
[423695041,1780315668000,-151.0,0.00010958,11]
[423695042,1780315687000,-264.51,9.081e-05,2]
[423695043,1780315741000,-3950.00495115,9.081e-05,2]
[423695044,1780315794000,-150.0,9e-05,2]
[423695060,1780315831000,-396.4,9.093e-05,2]
[423695056,1780315831000,-197.63122671,9.081e-05,2]
[423695057,1780315831000,-250.0,9.086e-05,2]
[423695067,1780315831000,-170.56,9.61e-05,2]
[423695059,1780315831000,-284.68399339,9.093e-05,2]
[423695058,1780315831000,-153.34340001,9.092e-05,2]
[423695068,1780315831000,-1131.16,9.76e-05,2]
[423695062,1780315831000,-9.14022196,9.171e-05,2]
[423695064,1780315831000,-187.0,9.262e-05,2]
[423695063,1780315831000,-140.85977804,9.171e-05,2]
[423695065,1780315831000,-1000.0,9.415e-05,2]
[423695066,1780315831000,-159.99,9.415e-05,2]
[423695061,1780315831000,-518.91600661,9.093e-05,2]
[423695070,1780315831000,-4411.61,9.76e-05,2]
[423695072,1780315831000,-9999.99,9.76e-05,2]
[423695071,1780315831000,-299.99,9.76e-05,2]
[423695069,1780315831000,-150.99,9.76e-05,2]
[423695095,1780315832000,-250.0,9.989e-05,2]
[423695094,1780315832000,-500.0,9.952e-05,2]
[423695096,1780315832000,-500.0,9.989e-05,2]
[423695099,1780315832000,-500.0,9.998e-05,2]
[423695101,1780315832000,-500.0,9.998e-05,2]
[423695097,1780315832000,-279.31820305,9.989e-05,2]
[423695098,1780315832000,-500.0,9.998e-05,2]
[423695100,1780315832000,-309.24019052,9.998e-05,2]
[423695102,1780315832000,-500.0,9.998e-05,2]
[423695105,1780315832000,-500.0,9.998e-05,2]
[423695106,1780315832000,-500.0,9.998e-05,2]
[423695093,1780315832000,-500.0,9.952e-05,2]
[423695104,1780315832000,-500.0,9.998e-05,2]
[423695112,1780315832000,-500.0,9.998e-05,2]
[423695110,1780315832000,-500.0,9.998e-05,2]
[423695107,1780315832000,-500.0,9.998e-05,2]
[423695111,1780315832000,-177.97572943,9.998e-05,2]
[423695103,1780315832000,-500.0,9.998e-05,2]
[423695092,1780315832000,-500.0,9.952e-05,2]
[423695078,1780315832000,-500.0,9.952e-05,2]
[423695089,1780315832000,-407.70104009,9.952e-05,2]
[423695108,1780315832000,-500.0,9.998e-05,2]
[423695079,1780315832000,-500.0,9.952e-05,2]
[423695073,1780315832000,-500.0,9.9e-05,2]
[423695074,1780315832000,-170.56,9.947e-05,2]
[423695075,1780315832000,-500.0,9.952e-05,2]
[423695077,1780315832000,-500.0,9.952e-05,2]
[423695076,1780315832000,-500.0,9.952e-05,2]
[423695081,1780315832000,-500.0,9.952e-05,2]
[423695080,1780315832000,-500.0,9.952e-05,2]
[423695083,1780315832000,-483.71194825,9.952e-05,2]
[423695082,1780315832000,-500.0,9.952e-05,2]
[423695084,1780315832000,-500.0,9.952e-05,2]
[423695085,1780315832000,-500.0,9.952e-05,2]
[423695086,1780315832000,-500.0,9.952e-05,2]
[423695087,1780315832000,-500.0,9.952e-05,2]
[423695090,1780315832000,-500.0,9.952e-05,2]
[423695088,1780315832000,-500.0,9.952e-05,2]
[423695091,1780315832000,-500.0,9.952e-05,2]
[423695109,1780315832000,-500.0,9.998e-05,2]
[423695123,1780315832000,-558.80076883,0.0001,2]
[423695114,1780315832000,-500.0,9.998e-05,2]
[423695134,1780315832000,-2000.0,0.00010126,2]
[423695137,1780315832000,-170.56,0.00010284,2]
[423695135,1780315832000,-500.0,0.00010274,2]
[423695113,1780315832000,-500.0,9.998e-05,2]
[423695141,1780315832000,-166.66,0.00010443,2]
[423695143,1780315832000,-2513.46728174,0.00010529,2]
[423695144,1780315832000,-500.0,0.00010548,2]
[423695146,1780315832000,-170.56,0.00010621,2]
[423695145,1780315832000,-159.99,0.00010592,2]
[423695142,1780315832000,-1486.53271826,0.00010529,2]
[423695149,1780315832000,-903.95625,0.00010779,2]
[423695147,1780315832000,-2783.21071826,0.00010779,2]
[423695151,1780315832000,-166.66,0.00010788,2]
[423695148,1780315832000,-284.9898772,0.00010779,2]
[423695150,1780315832000,-27.84315454,0.00010779,2]
[423695153,1780315832000,-500.0,0.00010958,3]
[423695152,1780315832000,-500.0,0.00010958,2]
[423695140,1780315832000,-707.88484645,0.00010319,2]
[423695139,1780315832000,-14478.54283471,0.00010319,2]
[423695136,1780315832000,-4000.0,0.00010278,2]
[423695138,1780315832000,-4795.09231884,0.00010319,2]
[423695117,1780315832000,-388.8323745,9.998e-05,2]
[423695121,1780315832000,-215.58673283,0.0001,2]
[423695120,1780315832000,-300.0,9.998e-05,2]
[423695132,1780315832000,-2857.80768116,0.00010027,2]
[423695116,1780315832000,-63.18058832,9.998e-05,2]
[423695119,1780315832000,-500.0,9.998e-05,2]
[423695118,1780315832000,-47.98703718,9.998e-05,2]
[423695122,1780315832000,-284.41326717,0.0001,2]
[423695126,1780315832000,-340.0,0.0001,2]
[423695115,1780315832000,-500.0,9.998e-05,2]
[423695124,1780315832000,-558.80076883,0.0001,2]
[423695125,1780315832000,-558.80076883,0.0001,2]
[423695131,1780315832000,-1142.19231884,0.00010027,2]
[423695128,1780315832000,-340.33902497,0.0001,2]
[423695130,1780315832000,-159.99,0.00010004,2]
[423695129,1780315832000,-1680.0,0.00010002,2]
[423695133,1780315832000,-155.14,0.00010118,2]
[423695127,1780315832000,-340.0,0.0001,2]
[423695168,1780315833000,-2351.0,0.00011003,2]
[423695165,1780315833000,-243.3534077,0.00010958,11]
[423695164,1780315833000,-469.55226956,0.00010958,10]
[423695163,1780315833000,-30.44773044,0.00010958,10]
[423695157,1780315833000,-244.75425058,0.00010958,6]
[423695155,1780315833000,-486.75425055,0.00010958,5]
[423695154,1780315833000,-500.0,0.00010958,4]
[423695160,1780315833000,-303.37180258,0.00010958,8]
[423695158,1780315833000,-255.24574942,0.00010958,6]
[423695156,1780315833000,-13.24574945,0.00010958,5]
[423695162,1780315833000,-500.0,0.00010958,9]
[423695159,1780315833000,-500.0,0.00010958,7]
[423695172,1780315833000,-155.14,0.00011383,2]
[423695161,1780315833000,-196.62819742,0.00010958,8]
[423695170,1780315833000,-166.66,0.00011133,2]
[423695180,1780315833000,-574.81083747,0.00012055,2]
[423695181,1780315833000,-458.44747329,0.00012055,2]
[423695179,1780315833000,-770.68,0.00012055,2]
[423695177,1780315833000,-250.0,0.00011999,2]
[423695178,1780315833000,-8256.45028735,0.00012055,2]
[423695174,1780315833000,-166.66,0.00011478,2]
[423695166,1780315833000,-150.0,0.00010959,2]
[423695175,1780315833000,-159.99,0.00011769,2]
[423695173,1780315833000,-2000.0,0.00011391,2]
[423695171,1780315833000,-159.99,0.00011181,2]
[423695167,1780315833000,-150.0,0.00010959,2]
[423695169,1780315833000,-4000.0,0.0001103,2]
[423695176,1780315833000,-166.66,0.00011822,2]
[423695208,1780315838000,-215.65015035,0.00012644,2]
[423695203,1780315838000,-71576.7632,0.00012229,2]
[423695206,1780315838000,-156.21408299,0.00012575,2]
[423695207,1780315838000,-150.0,0.000126,2]
[423695214,1780315838000,-12897.62465748,0.00012846,2]
[423695218,1780315838000,-4609.0,0.00013313,2]
[423695229,1780315838000,-500.0,0.00013698,2]
[423695228,1780315838000,-500.0,0.00013698,2]
[423695219,1780315838000,-159.99,0.00013535,2]
[423695224,1780315838000,-504.50119994,0.00013698,2]
[423695221,1780315838000,-398.78114331,0.00013597,3]
[423695223,1780315838000,-507.7240582,0.00013698,2]
[423695225,1780315838000,-500.0,0.00013698,2]
[423695212,1780315838000,-2000.0,0.00012657,2]
[423695227,1780315838000,-500.0,0.00013698,2]
[423695226,1780315838000,-500.0,0.00013698,2]
[423695230,1780315838000,-500.0,0.00013698,2]
[423695217,1780315838000,-500.0,0.00013048,2]
[423695222,1780315838000,-1131.16,0.00013664,2]
[423695193,1780315838000,-3243.72431298,0.00012087,2]
[423695205,1780315838000,-159.99,0.00012358,2]
[423695187,1780315838000,-36.58906656,8.981e-05,2]
[423695186,1780315838000,-463.41093344,8.981e-05,2]
[423695188,1780315838000,-30471.79140189,0.00012055,2]
[423695189,1780315838000,-40999.41373012,0.00012067,2]
[423695191,1780315838000,-831.16619466,0.00012067,2]
[423695190,1780315838000,-1087.5,0.00012067,2]
[423695192,1780315838000,-120.96248899,0.00012067,2]
[423695197,1780315838000,-2513.1016229,0.00012087,2]
[423695202,1780315838000,-166.66,0.00012167,2]
[423695200,1780315838000,-3292.0,0.00012103,2]
[423695199,1780315838000,-4177.78260651,0.00012087,2]
[423695195,1780315838000,-3005.01241126,0.00012087,2]
[423695194,1780315838000,-379.69568702,0.00012087,2]
[423695198,1780315838000,-16963.48347387,0.00012087,2]
[423695233,1780315838000,-500.0,0.00013698,2]
[423695201,1780315838000,-2500.0,0.00012129,2]
[423695204,1780315838000,-173.44,0.00012329,2]
[423695216,1780315838000,-159.99,0.00012946,2]
[423695196,1780315838000,-804.22988546,0.00012087,2]
[423695234,1780315838000,-500.0,0.00013698,2]
[423695210,1780315838000,-155.14,0.00012648,2]
[423695231,1780315838000,-500.0,0.00013698,2]
[423695259,1780315838000,-500.0,0.00013698,2]
[423695261,1780315838000,-500.0,0.00013698,2]
[423695268,1780315838000,-745.27,0.00013698,2]
[423695267,1780315838000,-745.27,0.00013698,2]
[423695265,1780315838000,-745.27,0.00013698,2]
[423695263,1780315838000,-745.27,0.00013698,2]
[423695264,1780315838000,-745.27,0.00013698,2]
[423695258,1780315838000,-500.0,0.00013698,2]
[423695266,1780315838000,-745.27,0.00013698,2]
[423695260,1780315838000,-500.0,0.00013698,2]
[423695270,1780315838000,-745.27,0.00013698,2]
[423695271,1780315838000,-745.27,0.00013698,2]
[423695273,1780315838000,-745.27,0.00013698,2]
[423695276,1780315838000,-745.27,0.00013698,2]
[423695274,1780315838000,-745.27,0.00013698,2]
[423695275,1780315838000,-745.27,0.00013698,2]
[423695277,1780315838000,-745.27,0.00013698,2]
[423695232,1780315838000,-500.0,0.00013698,2]
[423695269,1780315838000,-745.27,0.00013698,2]
[423695262,1780315838000,-505.56076516,0.00013698,2]
[423695272,1780315838000,-745.27,0.00013698,2]
[423695249,1780315838000,-500.0,0.00013698,2]
[423695238,1780315838000,-500.0,0.00013698,2]
[423695248,1780315838000,-500.0,0.00013698,2]
[423695237,1780315838000,-500.0,0.00013698,2]
[423695239,1780315838000,-500.0,0.00013698,2]
[423695241,1780315838000,-500.0,0.00013698,2]
[423695243,1780315838000,-500.0,0.00013698,2]
[423695235,1780315838000,-500.0,0.00013698,2]
[423695254,1780315838000,-500.0,0.00013698,2]
[423695255,1780315838000,-475.61764834,0.00013698,2]
[423695236,1780315838000,-500.0,0.00013698,2]
[423695257,1780315838000,-500.0,0.00013698,2]
[423695253,1780315838000,-500.0,0.00013698,2]
[423695244,1780315838000,-500.0,0.00013698,2]
[423695246,1780315838000,-500.0,0.00013698,2]
[423695251,1780315838000,-500.0,0.00013698,2]
[423695252,1780315838000,-500.0,0.00013698,2]
[423695250,1780315838000,-631.64150049,0.00013698,2]
[423695256,1780315838000,-500.0,0.00013698,2]
[423695247,1780315838000,-500.0,0.00013698,2]
[423695325,1780315839000,-500.0,0.00013699,2]
[423695320,1780315839000,-500.0,0.00013698,2]
[423695317,1780315839000,-171.0,0.00013698,2]
[423695315,1780315839000,-171.0,0.00013698,2]
[423695314,1780315839000,-500.0,0.00013698,2]
[423695309,1780315839000,-500.0,0.00013698,2]
[423695310,1780315839000,-339.61379618,0.00013698,2]
[423695311,1780315839000,-500.0,0.00013698,2]
[423695312,1780315839000,-500.0,0.00013698,2]
[423695316,1780315839000,-171.0,0.00013698,2]
[423695306,1780315839000,-500.0,0.00013698,2]
[423695313,1780315839000,-500.0,0.00013698,2]
[423695318,1780315839000,-171.0,0.00013698,2]
[423695329,1780315839000,-500.0,0.00013699,2]
[423695321,1780315839000,-200.0,0.00013699,2]
[423695324,1780315839000,-500.0,0.00013699,2]
[423695323,1780315839000,-500.0,0.00013699,2]
[423695326,1780315839000,-500.0,0.00013699,2]
[423695327,1780315839000,-500.0,0.00013699,2]
[423695319,1780315839000,-501.92576951,0.00013698,2]
[423695339,1780315839000,-500.0,0.00013699,2]
[423695328,1780315839000,-500.0,0.00013699,2]
[423695334,1780315839000,-500.0,0.00013699,2]
[423695335,1780315839000,-500.0,0.00013699,2]
[423695336,1780315839000,-500.0,0.00013699,2]
[423695308,1780315839000,-500.0,0.00013698,2]
[423695322,1780315839000,-166.66,0.00013699,2]
[423695333,1780315839000,-500.0,0.00013699,2]
[423695288,1780315839000,-566.99,0.00013698,2]
[423695305,1780315839000,-500.0,0.00013698,2]
[423695279,1780315839000,-745.27,0.00013698,2]
[423695278,1780315839000,-745.27,0.00013698,2]
[423695280,1780315839000,-745.27,0.00013698,2]
[423695282,1780315839000,-500.0,0.00013698,2]
[423695281,1780315839000,-745.27,0.00013698,2]
[423695291,1780315839000,-566.99,0.00013698,2]
[423695285,1780315839000,-566.99,0.00013698,2]
[423695289,1780315839000,-566.99,0.00013698,2]
[423695287,1780315839000,-566.99,0.00013698,2]
[423695283,1780315839000,-566.99,0.00013698,2]
[423695286,1780315839000,-566.99,0.00013698,2]
[423695290,1780315839000,-566.99,0.00013698,2]
[423695307,1780315839000,-275.90819985,0.00013698,2]
[423695284,1780315839000,-566.99,0.00013698,2]
[423695292,1780315839000,-566.99,0.00013698,2]
[423695303,1780315839000,-500.0,0.00013698,2]
[423695294,1780315839000,-566.99,0.00013698,2]
[423695296,1780315839000,-566.99,0.00013698,2]
[423695302,1780315839000,-500.0,0.00013698,2]
[423695295,1780315839000,-566.99,0.00013698,2]
[423695297,1780315839000,-566.99,0.00013698,2]
[423695298,1780315839000,-566.99,0.00013698,2]
[423695299,1780315839000,-566.99,0.00013698,2]
[423695300,1780315839000,-566.99,0.00013698,2]
[423695301,1780315839000,-566.99,0.00013698,2]
[423695304,1780315839000,-541.09,0.00013698,2]
[423695293,1780315839000,-566.99,0.00013698,2]
[423695337,1780315839000,-500.0,0.00013699,2]
[423695366,1780315839000,-3687.80530842,0.00013699,2]
[423695330,1780315839000,-500.0,0.00013699,2]
[423695372,1780315839000,-3687.80530842,0.00013699,2]
[423695373,1780315839000,-3687.80530842,0.00013699,2]
[423695370,1780315839000,-3687.80530842,0.00013699,2]
[423695368,1780315839000,-3687.80530842,0.00013699,2]
[423695375,1780315839000,-3687.80530842,0.00013699,2]
[423695369,1780315839000,-3687.80530842,0.00013699,2]
[423695374,1780315839000,-3687.80530842,0.00013699,2]
[423695377,1780315839000,-3687.80530842,0.00013699,2]
[423695376,1780315839000,-3687.80530842,0.00013699,2]
[423695378,1780315839000,-3687.80530842,0.00013699,2]
[423695387,1780315839000,-3687.80530842,0.00013699,2]
[423695386,1780315839000,-3687.80530842,0.00013699,2]
[423695371,1780315839000,-3687.80530842,0.00013699,2]
[423695379,1780315839000,-3687.80530842,0.00013699,2]
[423695382,1780315839000,-3687.80530842,0.00013699,2]
[423695385,1780315839000,-3687.80530842,0.00013699,2]
[423695381,1780315839000,-3687.80530842,0.00013699,2]
[423695384,1780315839000,-3687.80530842,0.00013699,2]
[423695383,1780315839000,-3687.80530842,0.00013699,2]
[423695388,1780315839000,-3687.80530842,0.00013699,2]
[423695390,1780315839000,-3687.80530842,0.00013699,2]
[423695389,1780315839000,-3687.80530842,0.00013699,2]
[423695391,1780315839000,-3687.80530842,0.00013699,2]
[423695393,1780315839000,-3687.80530842,0.00013699,2]
[423695392,1780315839000,-3687.80530842,0.00013699,2]
[423695395,1780315839000,-3687.80530842,0.00013699,2]
[423695380,1780315839000,-3687.80530842,0.00013699,2]
[423695365,1780315839000,-3687.80530842,0.00013699,2]